[Event "*** Titled Tuesday Blitz"]
[Site "Chess.com"]
[Date "2020.04.07"]
[Round "1"]
[White "sergeikim"]
[Black "Elshan1985"]
[Result "0-1"]
[WhiteElo "2358"]
[BlackElo "2701"]
[TimeControl "180+1"]
[EndTime "13:08:14 PDT"]
[Termination "Elshan1985 won on time"]

1. d4 {[%clk 0:02:57.4]} 1... e6 {[%clk 0:02:58.4]} 2. c4 {[%clk 0:02:56.7]}
2... Bb4+ {[%clk 0:02:55.7]} 3. Nd2 {[%clk 0:02:50.8]} 3... Nf6 {[%clk
0:02:51.5]} 4. g3 {[%clk 0:02:48.9]} 4... Nc6 {[%clk 0:02:47.2]} 5. Nf3 {[%clk
0:02:47.7]} 5... O-O {[%clk 0:02:42.2]} 6. Bg2 {[%clk 0:02:46.8]} 6... d6 {[%clk
0:02:42.3]} 7. O-O {[%clk 0:02:45.4]} 7... e5 {[%clk 0:02:42.3]} 8. d5 {[%clk
0:02:42.8]} 8... Nb8 {[%clk 0:02:36.3]} 9. a3 {[%clk 0:02:41.6]} 9... Bc5 {[%clk
0:02:34.3]} 10. b4 {[%clk 0:02:27.3]} 10... Bb6 {[%clk 0:02:33.5]} 11. Bb2
{[%clk 0:02:22.6]} 11... a5 {[%clk 0:02:32.8]} 12. Qc2 {[%clk 0:02:21]} 12...
Nbd7 {[%clk 0:02:24.6]} 13. Nb3 {[%clk 0:02:14.7]} 13... a4 {[%clk 0:02:11.4]}
14. Nbd2 {[%clk 0:02:13]} 14... Re8 {[%clk 0:02:09.6]} 15. e4 {[%clk 0:02:10.3]}
15... c5 {[%clk 0:02:01.4]} 16. Nh4 {[%clk 0:02:00.8]} 16... Nf8 {[%clk
0:01:59.1]} 17. Kh1 {[%clk 0:01:50.5]} 17... Ng4 {[%clk 0:01:43.6]} 18. h3
{[%clk 0:01:39.9]} 18... Nh6 {[%clk 0:01:39.1]} 19. Bc3 {[%clk 0:01:25.4]} 19...
Bd7 {[%clk 0:01:33.7]} 20. Rae1 {[%clk 0:01:05.5]} 20... Qc8 {[%clk 0:01:20.1]}
21. Kh2 {[%clk 0:01:04.3]} 21... g5 {[%clk 0:01:17.4]} 22. Nhf3 {[%clk
0:01:02.9]} 22... g4 {[%clk 0:01:17.7]} 23. Ng1 {[%clk 0:01:00.5]} 23... cxb4
{[%clk 0:01:13.6]} 24. axb4 {[%clk 0:00:59.1]} 24... Ng6 {[%clk 0:01:12.9]} 25.
h4 {[%clk 0:00:54.5]} 25... Qd8 {[%clk 0:01:06.1]} 26. Ne2 {[%clk 0:00:46.4]}
26... Rc8 {[%clk 0:01:01.4]} 27. Qd3 {[%clk 0:00:29.6]} 27... f5 {[%clk
0:01:00.2]} 28. exf5 {[%clk 0:00:27.6]} 28... Bxf5 {[%clk 0:00:58.1]} 29. Ne4
{[%clk 0:00:27.2]} 29... Rf8 {[%clk 0:00:54.5]} 30. Kg1 {[%clk 0:00:24.6]} 30...
Qc7 {[%clk 0:00:42.2]} 31. Bd2 {[%clk 0:00:23.9]} 31... Qg7 {[%clk 0:00:27.7]}
32. Rc1 {[%clk 0:00:19]} 32... Nf7 {[%clk 0:00:27.2]} 33. Be3 {[%clk 0:00:17.1]}
33... Bxe3 {[%clk 0:00:26.5]} 34. Qxe3 {[%clk 0:00:17]} 34... Bxe4 {[%clk
0:00:26.3]} 35. Bxe4 {[%clk 0:00:14.2]} 35... Qh6 {[%clk 0:00:25.6]} 36. Qxh6
{[%clk 0:00:12.7]} 36... Nxh6 {[%clk 0:00:26.5]} 37. c5 {[%clk 0:00:11.9]} 37...
Nf7 {[%clk 0:00:22.9]} 38. c6 {[%clk 0:00:11.2]} 38... bxc6 {[%clk 0:00:19.9]}
39. dxc6 {[%clk 0:00:11.4]} 39... Ne7 {[%clk 0:00:20.4]} 40. b5 {[%clk
0:00:11.3]} 40... d5 {[%clk 0:00:20.8]} 41. Bg2 {[%clk 0:00:11.2]} 41... Nd6
{[%clk 0:00:20.9]} 42. Nc3 {[%clk 0:00:10.7]} 42... d4 {[%clk 0:00:21.2]} 43.
Nd5 {[%clk 0:00:10.5]} 43... Nef5 {[%clk 0:00:18.4]} 44. b6 {[%clk 0:00:08.4]}
44... Rf7 {[%clk 0:00:16.5]} 45. c7 {[%clk 0:00:08.3]} 45... a3 {[%clk
0:00:14.3]} 46. Ra1 {[%clk 0:00:07.2]} 46... Nc4 {[%clk 0:00:12.2]} 47. Rfc1
{[%clk 0:00:06.7]} 47... Nfd6 {[%clk 0:00:11.9]} 48. Bf1 {[%clk 0:00:05.6]}
48... Nxb6 {[%clk 0:00:11.2]} 49. Nxb6 {[%clk 0:00:05]} 49... Rcxc7 {[%clk
0:00:11.7]} 50. Rxc7 {[%clk 0:00:05.1]} 50... Rxc7 {[%clk 0:00:12.5]} 51. Rxa3
{[%clk 0:00:04.5]} 51... Rc1 {[%clk 0:00:12.7]} 52. Nd5 {[%clk 0:00:04.4]} 52...
Ne4 {[%clk 0:00:11.6]} 53. Kg2 {[%clk 0:00:04.8]} 53... Nd2 {[%clk 0:00:11.8]}
54. Bd3 {[%clk 0:00:03.4]} 54... Nf3 {[%clk 0:00:11.6]} 55. Nf6+ {[%clk
0:00:02.8]} 55... Kf7 {[%clk 0:00:11.3]} 56. Nxg4 {[%clk 0:00:03.4]} 56... Ne1+
{[%clk 0:00:11.6]} 57. Kh2 {[%clk 0:00:03.1]} 57... Nxd3 {[%clk 0:00:11.1]} 0-1

[Event "*** Titled Tuesday Blitz"]
[Site "Chess.com"]
[Date "2020.04.07"]
[Round "1"]
[White "BahadirOzen"]
[Black "steepedgames"]
[Result "0-1"]
[WhiteElo "2760"]
[BlackElo "2425"]
[TimeControl "180+1"]
[EndTime "13:08:18 PDT"]
[Termination "steepedgames won on time"]

1. Nf3 {[%clk 0:03:00.8]} 1... f5 {[%clk 0:02:59.8]} 2. c4 {[%clk 0:03:00]} 2...
Nf6 {[%clk 0:03:00.4]} 3. g3 {[%clk 0:02:58.2]} 3... d6 {[%clk 0:03:00.9]} 4. d4
{[%clk 0:02:57.8]} 4... g6 {[%clk 0:03:00.9]} 5. Bg2 {[%clk 0:02:58.3]} 5... Bg7
{[%clk 0:03:01.3]} 6. O-O {[%clk 0:02:58.7]} 6... O-O {[%clk 0:03:01.9]} 7. Nc3
{[%clk 0:02:56.7]} 7... Nc6 {[%clk 0:03:02.5]} 8. d5 {[%clk 0:02:56]} 8... Na5
{[%clk 0:03:02.6]} 9. Qd3 {[%clk 0:02:36.4]} 9... c5 {[%clk 0:02:53.2]} 10. b3
{[%clk 0:02:23.7]} 10... Bd7 {[%clk 0:02:49.4]} 11. Bb2 {[%clk 0:02:17.5]} 11...
a6 {[%clk 0:02:49.6]} 12. Nd2 {[%clk 0:02:06.8]} 12... Rb8 {[%clk 0:02:37.9]}
13. Nd1 {[%clk 0:02:00.1]} 13... b5 {[%clk 0:02:36.1]} 14. Bc3 {[%clk
0:01:50.2]} 14... e5 {[%clk 0:01:57.2]} 15. dxe6 {[%clk 0:01:41.8]} 15... Bxe6
{[%clk 0:01:57.3]} 16. Ne3 {[%clk 0:01:30.7]} 16... bxc4 {[%clk 0:01:40.4]} 17.
bxc4 {[%clk 0:01:30.4]} 17... Ng4 {[%clk 0:01:30.7]} 18. Nxg4 {[%clk 0:01:25.4]}
18... fxg4 {[%clk 0:01:13]} 19. Bxg7 {[%clk 0:01:25.5]} 19... Kxg7 {[%clk
0:01:13.9]} 20. Qc3+ {[%clk 0:01:23.2]} 20... Kg8 {[%clk 0:01:08]} 21. Rab1
{[%clk 0:01:19.6]} 21... Qc7 {[%clk 0:00:53.6]} 22. Rxb8 {[%clk 0:00:41.4]}
22... Rxb8 {[%clk 0:00:54.5]} 23. Ne4 {[%clk 0:00:42.1]} 23... Nxc4 {[%clk
0:00:45.4]} 24. Nf6+ {[%clk 0:00:38]} 24... Kf8 {[%clk 0:00:45.6]} 25. Nd5
{[%clk 0:00:33.7]} 25... Bxd5 {[%clk 0:00:40.5]} 26. Bxd5 {[%clk 0:00:29.8]}
26... Ne5 {[%clk 0:00:39.7]} 27. f4 {[%clk 0:00:20.1]} 27... gxf3 {[%clk
0:00:39.9]} 28. exf3 {[%clk 0:00:20.6]} 28... Qg7 {[%clk 0:00:39.6]} 29. Re1
{[%clk 0:00:15.3]} 29... Rd8 {[%clk 0:00:30.3]} 30. Kg2 {[%clk 0:00:14.7]} 30...
h5 {[%clk 0:00:27.5]} 31. Qe3 {[%clk 0:00:11.2]} 31... c4 {[%clk 0:00:22.9]} 32.
Qf4+ {[%clk 0:00:09.9]} 32... Ke7 {[%clk 0:00:21.8]} 33. Qxc4 {[%clk 0:00:09.8]}
33... Kf8 {[%clk 0:00:18.6]} 34. Qe4 {[%clk 0:00:10.7]} 34... Nd7 {[%clk
0:00:17.9]} 35. Qe6 {[%clk 0:00:10.2]} 35... Nf6 {[%clk 0:00:17.2]} 36. Bb3
{[%clk 0:00:09.6]} 36... g5 {[%clk 0:00:17.6]} 37. Rd1 {[%clk 0:00:07]} 37... g4
{[%clk 0:00:17.5]} 38. Rxd6 {[%clk 0:00:05.4]} 38... Rxd6 {[%clk 0:00:18.4]} 39.
Qxd6+ {[%clk 0:00:05.3]} 39... Ke8 {[%clk 0:00:19.3]} 40. Ba4+ {[%clk
0:00:03.4]} 40... Kf7 {[%clk 0:00:19.4]} 41. Qc7+ {[%clk 0:00:03.7]} 41... Kg6
{[%clk 0:00:19.9]} 42. Bc2+ {[%clk 0:00:03.7]} 42... Kh6 {[%clk 0:00:19.8]} 43.
Qf4+ {[%clk 0:00:01.9]} 43... Qg5 {[%clk 0:00:19.8]} 44. Qxg5+ {[%clk
0:00:02.5]} 44... Kxg5 {[%clk 0:00:20.7]} 45. Kf2 {[%clk 0:00:03.4]} 45... gxf3
{[%clk 0:00:20.5]} 46. Kxf3 {[%clk 0:00:04.3]} 46... Ng4 {[%clk 0:00:20.7]} 47.
h3 {[%clk 0:00:03.8]} 47... Ne5+ {[%clk 0:00:20.4]} 48. Kf2 {[%clk 0:00:03.5]}
48... Nc4 {[%clk 0:00:20.4]} 49. h4+ {[%clk 0:00:03.7]} 49... Kf6 {[%clk
0:00:18.8]} 50. Bd1 {[%clk 0:00:03.2]} 50... Kg6 {[%clk 0:00:18.6]} 51. Kf3
{[%clk 0:00:03.5]} 51... Ne5+ {[%clk 0:00:18.5]} 52. Ke4 {[%clk 0:00:03.7]}
52... Nd7 {[%clk 0:00:18.7]} 53. Kd5 {[%clk 0:00:03.2]} 53... Kf5 {[%clk
0:00:17.8]} 0-1

[Event "*** Titled Tuesday Blitz"]
[Site "Chess.com"]
[Date "2020.04.07"]
[Round "1"]
[White "temus_galaktionov"]
[Black "FranciscodelaF"]
[Result "1-0"]
[WhiteElo "2741"]
[BlackElo "2392"]
[TimeControl "180+1"]
[EndTime "13:08:18 PDT"]
[Termination "temus_galaktionov won by resignation"]

1. d4 {[%clk 0:03:00.9]} 1... e6 {[%clk 0:02:28.4]} 2. c4 {[%clk 0:02:59.8]}
2... d5 {[%clk 0:02:28.9]} 3. Nf3 {[%clk 0:02:59.2]} 3... Nf6 {[%clk 0:02:29.2]}
4. Nc3 {[%clk 0:02:58.9]} 4... dxc4 {[%clk 0:02:27.6]} 5. e3 {[%clk 0:02:58.5]}
5... c5 {[%clk 0:02:22.5]} 6. Bxc4 {[%clk 0:02:57.5]} 6... Nc6 {[%clk
0:02:22.8]} 7. O-O {[%clk 0:02:52]} 7... cxd4 {[%clk 0:02:20.4]} 8. exd4 {[%clk
0:02:49.5]} 8... Be7 {[%clk 0:02:19.1]} 9. Bf4 {[%clk 0:02:43.2]} 9... a6 {[%clk
0:02:17.9]} 10. Re1 {[%clk 0:02:42]} 10... b5 {[%clk 0:02:13.6]} 11. Bb3 {[%clk
0:02:39.9]} 11... O-O {[%clk 0:02:02]} 12. d5 {[%clk 0:02:38.6]} 12... exd5
{[%clk 0:01:56.8]} 13. Nxd5 {[%clk 0:02:39.5]} 13... Nxd5 {[%clk 0:01:53.6]} 14.
Qxd5 {[%clk 0:02:35]} 14... Bb7 {[%clk 0:01:50.2]} 15. Rac1 {[%clk 0:02:32.7]}
15... Na5 {[%clk 0:01:47.7]} 16. Qxd8 {[%clk 0:02:26.1]} 16... Bxd8 {[%clk
0:01:48]} 17. Bd6 {[%clk 0:02:25.7]} 17... Nxb3 {[%clk 0:01:48.2]} 18. axb3
{[%clk 0:02:25.1]} 18... Bxf3 {[%clk 0:01:46.6]} 19. gxf3 {[%clk 0:02:23.6]}
19... Bg5 {[%clk 0:01:46]} 20. f4 {[%clk 0:02:06.7]} 20... Rfd8 {[%clk
0:01:44.7]} 21. Bc7 {[%clk 0:02:06.8]} 21... Bf6 {[%clk 0:01:23.4]} 22. Bxd8
{[%clk 0:02:06.3]} 22... Rxd8 {[%clk 0:01:24.3]} 23. Ra1 {[%clk 0:01:48]} 23...
h5 {[%clk 0:01:14]} 24. Rxa6 {[%clk 0:01:47.6]} 24... Bxb2 {[%clk 0:01:13.3]}
25. Rb6 {[%clk 0:01:47.3]} 25... Bc3 {[%clk 0:01:12.4]} 26. Re7 {[%clk
0:01:44.9]} 26... b4 {[%clk 0:01:11.5]} 27. Rbb7 {[%clk 0:01:44.4]} 27... f5
{[%clk 0:01:06.6]} 28. Rb5 {[%clk 0:01:37.9]} 28... Rd2 {[%clk 0:00:59.1]} 29.
Rxf5 {[%clk 0:01:23.1]} 29... h4 {[%clk 0:00:59.5]} 30. Re8+ {[%clk 0:00:57.1]}
30... Kh7 {[%clk 0:00:57.1]} 31. Rh5+ {[%clk 0:00:46.3]} 31... Kg6 {[%clk
0:00:56.5]} 32. Rxh4 {[%clk 0:00:46.7]} 32... Rb2 {[%clk 0:00:56.4]} 33. Rg4+
{[%clk 0:00:41.2]} 33... Kf7 {[%clk 0:00:55.6]} 34. Rb8 {[%clk 0:00:41]} 34...
Rxb3 {[%clk 0:00:55.9]} 35. Rg3 {[%clk 0:00:38.9]} 35... Rb2 {[%clk 0:00:52.9]}
36. Rd3 {[%clk 0:00:37.7]} 36... Re2 {[%clk 0:00:44.6]} 37. Rb6 {[%clk
0:00:36.3]} 37... Re4 {[%clk 0:00:41.9]} 38. Rd7+ {[%clk 0:00:31.3]} 38... Kg8
{[%clk 0:00:41.6]} 39. f5 {[%clk 0:00:31.7]} 39... Rf4 {[%clk 0:00:39.1]} 40.
Rb5 {[%clk 0:00:28.8]} 40... Bd4 {[%clk 0:00:38]} 41. Kg2 {[%clk 0:00:28.9]}
41... Bxf2 {[%clk 0:00:37.3]} 42. Rbb7 {[%clk 0:00:21.1]} 42... Bd4 {[%clk
0:00:36.3]} 43. Rxb4 {[%clk 0:00:20.3]} 43... Rf2+ {[%clk 0:00:33.2]} 44. Kg3
{[%clk 0:00:19.3]} 44... Bc5 {[%clk 0:00:20.2]} 45. Rbb7 {[%clk 0:00:19.8]}
45... Rxf5 {[%clk 0:00:18.2]} 46. Rxg7+ {[%clk 0:00:20.3]} 46... Kf8 {[%clk
0:00:18.1]} 47. Rgd7 {[%clk 0:00:20.9]} 47... Kg8 {[%clk 0:00:16.5]} 48. Rd8+
{[%clk 0:00:19.8]} 48... Bf8 {[%clk 0:00:15.8]} 49. Kg4 {[%clk 0:00:20]} 49...
Rf7 {[%clk 0:00:14.9]} 50. Rxf7 {[%clk 0:00:18.6]} 50... Kxf7 {[%clk 0:00:15.8]}
51. Rd7+ {[%clk 0:00:19.1]} 51... Ke6 {[%clk 0:00:15.7]} 52. Ra7 {[%clk
0:00:18.5]} 52... Kf6 {[%clk 0:00:16.2]} 53. h4 {[%clk 0:00:18.1]} 53... Bd6
{[%clk 0:00:16.6]} 54. h5 {[%clk 0:00:18.4]} 54... Bc5 {[%clk 0:00:17]} 55. Rb7
{[%clk 0:00:18.4]} 55... Be3 {[%clk 0:00:16.5]} 56. Rh7 {[%clk 0:00:16.3]} 56...
Ke6 {[%clk 0:00:16]} 57. Rg7 {[%clk 0:00:16]} 57... Kf6 {[%clk 0:00:16.3]} 58.
Rg8 {[%clk 0:00:16]} 58... Kf7 {[%clk 0:00:16.7]} 59. Rg6 {[%clk 0:00:16.2]}
59... Bd2 {[%clk 0:00:16.4]} 60. Kf5 {[%clk 0:00:16.2]} 60... Bc1 {[%clk
0:00:15.9]} 61. h6 {[%clk 0:00:15.7]} 61... Bb2 {[%clk 0:00:14.5]} 62. h7 {[%clk
0:00:15.9]} 62... Bg7 {[%clk 0:00:14.1]} 63. Rg5 {[%clk 0:00:15.7]} 63... Kf8
{[%clk 0:00:14.2]} 64. Ke6 {[%clk 0:00:15.4]} 1-0

[Event "*** Titled Tuesday Blitz"]
[Site "Chess.com"]
[Date "2020.04.07"]
[Round "1"]
[White "Vuk2000"]
[Black "TwentyHourADay"]
[Result "1/2-1/2"]
[WhiteElo "2635"]
[BlackElo "2320"]
[TimeControl "180+1"]
[EndTime "13:08:18 PDT"]
[Termination "Game drawn by repetition"]

1. d4 {[%clk 0:03:00.9]} 1... Nf6 {[%clk 0:02:58.7]} 2. Bg5 {[%clk 0:02:59.8]}
2... d5 {[%clk 0:02:56]} 3. Bxf6 {[%clk 0:02:58.8]} 3... exf6 {[%clk 0:02:56.3]}
4. e3 {[%clk 0:02:56.3]} 4... Bd6 {[%clk 0:02:56.3]} 5. g3 {[%clk 0:02:55.6]}
5... c6 {[%clk 0:02:53.4]} 6. Bg2 {[%clk 0:02:52.6]} 6... O-O {[%clk 0:02:52.9]}
7. Nd2 {[%clk 0:02:52.1]} 7... f5 {[%clk 0:02:53]} 8. Ne2 {[%clk 0:02:52]} 8...
Be6 {[%clk 0:02:53.3]} 9. O-O {[%clk 0:02:51.5]} 9... Nd7 {[%clk 0:02:53.6]} 10.
Nf4 {[%clk 0:02:51.6]} 10... Nf6 {[%clk 0:02:52.8]} 11. Nxe6 {[%clk 0:02:50.8]}
11... fxe6 {[%clk 0:02:52.9]} 12. c4 {[%clk 0:02:51.2]} 12... Qe7 {[%clk
0:02:50.5]} 13. Qc2 {[%clk 0:02:43.5]} 13... Ne4 {[%clk 0:02:49.8]} 14. Nf3
{[%clk 0:02:34.5]} 14... Rf6 {[%clk 0:02:42.6]} 15. Rac1 {[%clk 0:02:25]} 15...
Raf8 {[%clk 0:02:41.4]} 16. Ne5 {[%clk 0:02:09.3]} 16... Rh6 {[%clk 0:02:30.1]}
17. f4 {[%clk 0:02:01.6]} 17... Bxe5 {[%clk 0:02:23.7]} 18. fxe5 {[%clk
0:01:49.1]} 18... Qg5 {[%clk 0:02:23.2]} 19. Rf4 {[%clk 0:01:47.9]} 19... Qh5
{[%clk 0:02:20]} 20. Bxe4 {[%clk 0:01:33.8]} 20... fxe4 {[%clk 0:02:16.3]} 21.
Rxf8+ {[%clk 0:01:33.2]} 21... Kxf8 {[%clk 0:02:16.6]} 22. Rf1+ {[%clk
0:01:33.5]} 22... Kg8 {[%clk 0:02:15.9]} 23. Qf2 {[%clk 0:01:32.1]} 23... Qe8
{[%clk 0:02:06.9]} 24. cxd5 {[%clk 0:01:20.7]} 24... exd5 {[%clk 0:02:03.4]} 25.
Qf5 {[%clk 0:01:16.1]} 25... Re6 {[%clk 0:02:01.3]} 26. b4 {[%clk 0:01:14.6]}
26... Re7 {[%clk 0:01:58.4]} 27. Qg4 {[%clk 0:01:12]} 27... h6 {[%clk
0:01:48.9]} 28. Rf6 {[%clk 0:01:09.5]} 28... Kh8 {[%clk 0:01:45.9]} 29. Rf5
{[%clk 0:01:02.3]} 29... Rf7 {[%clk 0:01:41.7]} 30. Qh5 {[%clk 0:00:24.1]} 30...
Kg8 {[%clk 0:01:41.4]} 31. Qg6 {[%clk 0:00:20.5]} 31... Qe7 {[%clk 0:01:29.9]}
32. a3 {[%clk 0:00:15.4]} 32... Rxf5 {[%clk 0:01:27.2]} 33. Qxf5 {[%clk
0:00:16.3]} 33... Qf7 {[%clk 0:01:27.8]} 34. Qc8+ {[%clk 0:00:16.2]} 34... Kh7
{[%clk 0:01:28.1]} 35. Qg4 {[%clk 0:00:16.5]} 35... Qg6 {[%clk 0:01:24.9]} 36.
Qd7 {[%clk 0:00:10.1]} 36... Qg5 {[%clk 0:01:22.4]} 37. Kf2 {[%clk 0:00:08.5]}
37... Qh5 {[%clk 0:01:22.7]} 38. g4 {[%clk 0:00:04.1]} 38... Qxh2+ {[%clk
0:01:22]} 39. Ke1 {[%clk 0:00:04.4]} 39... Qg3+ {[%clk 0:01:18.3]} 40. Ke2
{[%clk 0:00:04]} 40... Qf3+ {[%clk 0:01:16.9]} 41. Kd2 {[%clk 0:00:04.2]} 41...
Qf2+ {[%clk 0:01:17.3]} 42. Kd1 {[%clk 0:00:04.4]} 42... Qf1+ {[%clk 0:01:17.1]}
43. Kd2 {[%clk 0:00:04.4]} 43... Qd3+ {[%clk 0:01:18]} 44. Kc1 {[%clk
0:00:03.6]} 44... Qxa3+ {[%clk 0:01:16.8]} 45. Kc2 {[%clk 0:00:04.5]} 45... Qd3+
{[%clk 0:01:16.3]} 46. Kb2 {[%clk 0:00:04.6]} 46... Qd2+ {[%clk 0:01:12.4]} 47.
Kb1 {[%clk 0:00:04.7]} 47... Qxb4+ {[%clk 0:01:08.7]} 48. Kc2 {[%clk 0:00:04.6]}
48... Qc4+ {[%clk 0:01:08.6]} 49. Kb2 {[%clk 0:00:04.5]} 49... Qe2+ {[%clk
0:01:02.5]} 50. Kb1 {[%clk 0:00:05.4]} 50... Qd1+ {[%clk 0:00:57.3]} 51. Kb2
{[%clk 0:00:05.1]} 51... Qd2+ {[%clk 0:00:57.4]} 52. Kb1 {[%clk 0:00:05.4]}
52... Qb4+ {[%clk 0:00:56]} 53. Kc2 {[%clk 0:00:04.6]} 53... Qa4+ {[%clk
0:00:44]} 54. Kb2 {[%clk 0:00:05.5]} 54... Qb5+ {[%clk 0:00:43]} 55. Kc2 {[%clk
0:00:05.5]} 55... Qd3+ {[%clk 0:00:41]} 56. Kb2 {[%clk 0:00:06.1]} 56... Qd2+
{[%clk 0:00:27.6]} 57. Kb1 {[%clk 0:00:06]} 57... Qe1+ {[%clk 0:00:24.2]} 58.
Kc2 {[%clk 0:00:05.9]} 58... Qf2+ {[%clk 0:00:23.7]} 59. Kb1 {[%clk 0:00:05.9]}
59... Qe1+ {[%clk 0:00:19.1]} 60. Kb2 {[%clk 0:00:06]} 60... Qb4+ {[%clk
0:00:18.8]} 61. Kc2 {[%clk 0:00:05.9]} 1/2-1/2

[Event "*** Titled Tuesday Blitz"]
[Site "Chess.com"]
[Date "2020.04.07"]
[Round "1"]
[White "reigningmvp"]
[Black "iLuusions"]
[Result "0-1"]
[WhiteElo "2245"]
[BlackElo "2592"]
[TimeControl "180+1"]
[EndTime "13:08:22 PDT"]
[Termination "iLuusions won by checkmate"]

1. Nf3 {[%clk 0:02:54.4]} 1... Nf6 {[%clk 0:02:58.9]} 2. g3 {[%clk 0:02:54.6]}
2... d5 {[%clk 0:02:56.1]} 3. Bg2 {[%clk 0:02:54]} 3... c6 {[%clk 0:02:54.7]} 4.
O-O {[%clk 0:02:54.1]} 4... Bg4 {[%clk 0:02:54.8]} 5. c4 {[%clk 0:02:53.4]} 5...
e6 {[%clk 0:02:53]} 6. Qb3 {[%clk 0:02:42.8]} 6... Qb6 {[%clk 0:02:50.8]} 7. Qc2
{[%clk 0:02:41.9]} 7... Nbd7 {[%clk 0:02:49]} 8. d3 {[%clk 0:02:38.9]} 8... Bd6
{[%clk 0:02:44]} 9. b3 {[%clk 0:02:32.2]} 9... O-O {[%clk 0:02:40.9]} 10. Bb2
{[%clk 0:02:32.6]} 10... e5 {[%clk 0:02:35.1]} 11. Nbd2 {[%clk 0:02:31.8]} 11...
Rfe8 {[%clk 0:02:34]} 12. h3 {[%clk 0:02:30.4]} 12... Bf5 {[%clk 0:02:30.2]} 13.
Nh4 {[%clk 0:02:26.8]} 13... Bg6 {[%clk 0:02:24.1]} 14. Nxg6 {[%clk 0:02:23.2]}
14... hxg6 {[%clk 0:02:21.5]} 15. a3 {[%clk 0:02:15.8]} 15... a5 {[%clk
0:02:18.4]} 16. Rac1 {[%clk 0:02:11.4]} 16... e4 {[%clk 0:01:55.1]} 17. dxe4
{[%clk 0:02:09.3]} 17... dxe4 {[%clk 0:01:53.3]} 18. Nxe4 {[%clk 0:02:06.1]}
18... Nxe4 {[%clk 0:01:53]} 19. Bxe4 {[%clk 0:02:06.1]} 19... Nc5 {[%clk
0:01:43.2]} 20. Bg2 {[%clk 0:01:44.2]} 20... Nxb3 {[%clk 0:01:34.9]} 21. Rb1
{[%clk 0:01:38.9]} 21... a4 {[%clk 0:01:34.8]} 22. e3 {[%clk 0:01:34]} 22...
Rad8 {[%clk 0:01:27.3]} 23. Rfd1 {[%clk 0:01:21.5]} 23... Qc5 {[%clk 0:01:22]}
24. Bd4 {[%clk 0:01:15.3]} 24... Qxa3 {[%clk 0:01:17.2]} 25. Qc3 {[%clk
0:01:06]} 25... Bb4 {[%clk 0:01:14.1]} 26. Qc2 {[%clk 0:00:55.7]} 26... Bc5
{[%clk 0:01:09]} 27. Bc3 {[%clk 0:00:30.8]} 27... Be7 {[%clk 0:01:02.6]} 28. h4
{[%clk 0:00:25.6]} 28... Bf6 {[%clk 0:00:45.7]} 29. Bxf6 {[%clk 0:00:24.4]}
29... gxf6 {[%clk 0:00:46.6]} 30. h5 {[%clk 0:00:24.8]} 30... Kg7 {[%clk
0:00:40]} 31. Be4 {[%clk 0:00:19.4]} 31... f5 {[%clk 0:00:33]} 32. Bxf5 {[%clk
0:00:18.9]} 32... gxf5 {[%clk 0:00:33.1]} 33. Qxf5 {[%clk 0:00:19.2]} 33... Qc5
{[%clk 0:00:33.4]} 34. Qg4+ {[%clk 0:00:17.9]} 34... Kh8 {[%clk 0:00:28.1]} 35.
Qh4 {[%clk 0:00:14.1]} 35... Rd6 {[%clk 0:00:21.3]} 36. h6 {[%clk 0:00:09.1]}
36... Nd2 {[%clk 0:00:17.5]} 37. Rxd2 {[%clk 0:00:09]} 37... Rg6 {[%clk
0:00:09.4]} 38. Rbd1 {[%clk 0:00:08.9]} 38... Kh7 {[%clk 0:00:05.2]} 39. Rd8
{[%clk 0:00:09.3]} 39... Qe5 {[%clk 0:00:01.8]} 40. Rxe8 {[%clk 0:00:09.1]}
40... Qxe8 {[%clk 0:00:02.7]} 41. Rd8 {[%clk 0:00:09.7]} 41... Qe5 {[%clk
0:00:02.7]} 42. Rf8 {[%clk 0:00:08]} 42... Qf6 {[%clk 0:00:02.9]} 43. Qe4 {[%clk
0:00:07.9]} 43... Kxh6 {[%clk 0:00:02.6]} 44. Qe8 {[%clk 0:00:08]} 44... a3
{[%clk 0:00:02.1]} 45. Rh8+ {[%clk 0:00:08.1]} 45... Kg5 {[%clk 0:00:02.5]} 46.
f4+ {[%clk 0:00:08.4]} 46... Kg4 {[%clk 0:00:02.2]} 47. Qe4 {[%clk 0:00:07.6]}
47... Qa1+ {[%clk 0:00:01.2]} 48. Kh2 {[%clk 0:00:07.6]} 48... Qb2+ {[%clk
0:00:02]} 49. Kg1 {[%clk 0:00:08.1]} 49... Kxg3 {[%clk 0:00:02.5]} 50. Qg2+
{[%clk 0:00:07.3]} 50... Qxg2# {[%clk 0:00:02.4]} 0-1